bitfinex-derivatives/quotes_ETHF0:USTF0_20260209
["timestamp","ask_amount","ask_price","bid_price","bid_amount"]
[1770617091269,16.54152061,2087.4,2087.1,4.3435718]
[1770617092277,16.54152061,2087.4,2087.1,7.21355368]
[1770617092481,4.75990942,2087.4,2087.2,0.45073756]
[1770617092774,16.50863003,2087.4,2087.1,2.86998188]
[1770617092975,16.50863003,2087.4,2087.1,7.21654733]
[1770617093474,16.50863003,2087.4,2087.1,2.86998188]
[1770617094178,16.50863003,2087.4,2087.2,4.3494106]
[1770617095279,16.50863003,2087.4,2087.2,2.86998188]
[1770617095473,11.74872061,2087.6,2087.2,2.86998188]
[1770617095673,11.74872061,2087.6,2087.2,3.2737142]
[1770617096279,11.74872061,2087.6,2087.3,4.35414262]
[1770617096474,11.74872061,2087.6,2087.2,2.86998188]
[1770617096678,11.74872061,2087.6,2087.3,4.3541005]
[1770617096878,11.74872061,2087.6,2087.2,3.27073434]
[1770617097082,11.74872061,2087.6,2087.3,4.35410735]
[1770617097377,11.74872061,2087.6,2087.4,4.35849168]
[1770617097572,11.74872061,2087.6,2087.3,2.86998188]
[1770617097770,11.74872061,2087.6,2087.4,4.35846537]
[1770617097981,4.75990942,2087.4,2087.3,2.86998188]
[1770617098281,11.74872061,2087.6,2087.3,8.66346832]
[1770617098577,11.74872061,2087.6,2087.4,7.21928227]
[1770617098776,11.74872061,2087.6,2087.5,4.3584955]
[1770617098976,11.74872061,2087.6,2087.4,2.86078677]
[1770617100285,11.74872061,2088.4,2087.6,0.40003125]
[1770617100482,0.00505183,2088.3,2088.0,3.25983523]
[1770617100688,11.74872061,2088.5,2088.2,2.85980398]
[1770617100888,11.75377244,2088.4,2088.3,4.30497282]
[1770617101185,11.74872061,2088.6,2088.3,4.30497282]
[1770617101380,11.75349449,2088.6,2088.0,5.74281304]
[1770617101576,11.74872061,2088.4,2087.5,7.04493484]
[1770617101781,11.74872061,2088.4,2087.4,17.95418762]
[1770617101986,11.74872061,2088.2,2087.2,17.9390831]
[1770617102174,11.74872061,2088.2,2087.2,7.04493484]
[1770617102377,11.74872061,2088.0,2087.2,10.90020837]
[1770617102577,11.74872061,2087.8,2087.2,10.90020837]
[1770617103182,11.74872061,2087.6,2087.2,10.90020837]
[1770617103378,11.74872061,2087.6,2087.2,0.00606011]
[1770617103587,11.74872061,2087.4,2087.2,0.00606011]
[1770617103787,11.74872061,2087.4,2086.9,10.89414826]
[1770617104987,11.74872061,2088.3,2086.9,10.89849616]
[1770617105283,11.75377244,2088.3,2086.9,10.89849616]
[1770617106487,11.74872061,2088.3,2086.9,10.89849616]
[1770617107787,0.00505183,2088.2,2086.9,10.89849616]
[1770617107984,11.74872061,2088.1,2086.9,10.89849616]
[1770617108191,11.74872061,2088.1,2087.1,10.60289671]
[1770617108587,11.75377244,2088.0,2087.1,10.60289671]
[1770617108782,11.74872061,2088.0,2087.1,10.60289671]
[1770617109480,11.74872061,2088.0,2087.1,10.84263671]
[1770617110482,11.75377244,2088.0,2087.3,10.51140017]
[1770617112994,0.00505183,2088.0,2087.3,10.51140017]
[1770617113191,11.75377244,2088.0,2087.3,10.51140017]
[1770617113486,0.00505183,2088.0,2087.3,10.51140017]
[1770617113790,11.75377244,2088.0,2087.3,10.51140017]
[1770617117397,11.74872061,2088.0,2087.3,10.51140017]
[1770617117591,11.75377244,2088.0,2087.3,10.51140017]
[1770617117993,11.75377244,2088.0,2087.5,10.5487674]
[1770617118192,11.30591247,2088.5,2087.5,10.7884674]
[1770617118387,11.3109643,2088.5,2087.5,10.7884674]
[1770617119604,11.3109643,2088.5,2087.2,42.1085263]
[1770617119803,11.3109643,2088.5,2087.3,11.1315263]
[1770617121603,11.3109643,2088.5,2087.4,11.22183552]
[1770617122403,11.3109643,2088.5,2087.3,11.03572081]
[1770617122600,11.3109643,2088.5,2087.1,11.03572081]
[1770617122800,11.3109643,2088.5,2087.4,11.03572081]
[1770617123001,11.3109643,2088.5,2087.5,11.03572081]
[1770617124406,11.3109643,2088.5,2087.7,11.06073453]
[1770617124605,11.3109643,2088.5,2087.8,11.06073453]
[1770617125201,0.00505183,2088.5,2087.8,11.06073453]
[1770617125407,0.00505183,2088.5,2088.0,11.06073453]
[1770617126304,0.00505183,2088.6,2088.1,11.08896637]
[1770617127310,0.00960117,2088.6,2088.1,11.08896637]
[1770617127507,0.00354096,2088.6,2088.1,11.08896637]
[1770617127902,3.10517942,2089.6,2088.1,11.08896637]
[1770617127903,11.30591247,2089.5,2088.1,11.08896637]
[1770617128107,11.30591247,2089.5,2088.2,10.88996805]
[1770617128912,11.31037908,2089.5,2088.2,10.88996805]
[1770617130109,14.06704552,2089.5,2087.9,5.7109126]
[1770617130313,11.30591247,2089.4,2087.8,10.91924746]
[1770617131517,11.30591247,2089.4,2088.0,10.91924746]
[1770617137413,11.30591247,2089.4,2088.1,10.89051839]
[1770617138410,11.30591247,2089.4,2088.2,10.8897336]
[1770617140325,11.30591247,2089.4,2088.3,10.88456093]
[1770617141619,11.30591247,2089.4,2088.5,10.88456093]
[1770617141823,11.30591247,2090.5,2089.3,10.88675015]
[1770617142520,11.30591247,2090.5,2089.4,15.16177789]
[1770617142723,11.31185772,2090.5,2089.6,10.88675015]
[1770617144421,11.55121772,2090.5,2089.1,4.27502774]
[1770617144628,11.30591247,2090.3,2088.8,10.6479615]
[1770617144822,11.30591247,2090.1,2088.8,10.6479615]
[1770617145027,11.30591247,2090.1,2088.6,0.3090654]
[1770617145028,11.30591247,2089.8,2088.6,10.9570269]
[1770617145229,11.30591247,2089.8,2088.6,10.6479615]
[1770617154732,11.30591247,2089.8,2088.5,0.00354404]
[1770617154936,11.30591247,2089.8,2088.5,10.71426185]
[1770617157733,14.58751338,2089.5,2088.5,0.00354404]
[1770617160145,12.0746062,2089.4,2088.0,10.29686988]
[1770617161137,12.0746062,2089.4,2088.0,10.30102747]
[1770617161739,11.8351162,2089.0,2088.0,10.30102747]
[1770617161942,11.84030664,2089.0,2088.0,10.30102747]
[1770617162341,11.84030664,2089.0,2088.0,0.00415759]
[1770617163837,11.8351162,2088.2,2087.3,10.51954147]
[1770617164240,11.8351162,2088.2,2086.4,32.06523]
[1770617164241,12.0747362,2088.2,2087.1,10.51954147]
[1770617164839,12.0747362,2088.2,2087.1,10.52421318]
[1770617167247,11.8351162,2088.2,2087.1,10.52421318]
[1770617168441,11.8351162,2088.2,2087.1,10.76396318]
[1770617168640,11.8351162,2088.8,2087.1,13.61217475]
[1770617168944,11.8351162,2088.8,2087.2,10.67815924]
[1770617174654,11.8351162,2088.6,2087.2,10.67815924]
[1770617174855,14.58751338,2088.6,2087.2,10.67815924]
[1770617175558,11.26510926,2088.5,2087.2,10.67815924]
[1770617177660,2.99197718,2088.6,2087.1,0.00467171]
[1770617177661,11.8145627,2088.1,2087.1,0.00467171]
[1770617178857,12.0541927,2088.1,2087.1,0.00467171]
[1770617180162,0.23965,2088.0,2087.1,0.00467171]
[1770617180367,11.8145627,2087.6,2086.6,10.93345706]
[1770617180564,11.8145627,2087.6,2086.6,11.23169499]
[1770617181365,11.8145627,2087.6,2086.6,11.23574715]
[1770617183569,11.8145627,2087.6,2086.6,10.93750922]
[1770617186066,11.8145627,2087.6,2086.7,10.93345706]
[1770617187267,11.8145627,2087.6,2086.8,10.93345706]
[1770617191280,11.8145627,2087.6,2086.9,10.93345706]
[1770617193077,11.8145627,2088.1,2086.9,10.93345706]
[1770617193277,11.8145627,2088.1,2087.0,10.93345706]
[1770617194176,11.8145627,2088.1,2087.1,10.93345706]
[1770617194771,11.8145627,2088.1,2087.2,10.93345706]
[1770617194970,11.8145627,2088.1,2087.3,10.93345706]
[1770617195282,11.8145627,2088.1,2087.1,10.93345706]
[1770617198475,11.8145627,2088.1,2087.2,10.93345706]
[1770617200781,11.8145627,2088.1,2087.3,10.93345706]
[1770617203977,11.8145627,2088.1,2087.4,10.93345706]
[1770617205473,11.8145627,2088.1,2087.5,10.96431767]
[1770617206782,11.8145627,2088.1,2087.3,2.86783004]
[1770617206985,11.8145627,2088.1,2087.0,13.83214771]
[1770617207175,11.8145627,2088.1,2087.1,10.96431767]
[1770617207375,11.8145627,2088.1,2087.2,10.96431767]
[1770617208176,11.8145627,2088.1,2087.5,10.96431767]
[1770617213685,11.8145627,2088.1,2087.6,10.96431767]
[1770617215685,11.8145627,2088.1,2087.5,13.83214771]
[1770617216890,11.8145627,2088.1,2087.6,10.96431767]
[1770617217091,11.81101865,2088.1,2087.5,13.83214771]
[1770617218292,11.81101865,2088.1,2087.3,13.83214771]
[1770617219485,11.81101865,2088.1,2087.3,2.86783004]
[1770617219686,11.81101865,2088.1,2087.2,2.86783004]
[1770617220390,11.81101865,2088.1,2087.3,10.68216243]
[1770617220590,11.81101865,2088.1,2087.4,10.68216243]
[1770617220790,11.81101865,2088.1,2087.5,10.68216243]
[1770617221693,11.81101865,2088.1,2087.6,10.68216243]
[1770617224193,11.81101865,2088.1,2087.7,10.92654811]
[1770617224490,11.03106443,2088.4,2087.7,10.92654811]
[1770617224890,11.03106443,2088.4,2087.8,10.92654811]
[1770617225193,11.03106443,2088.4,2087.7,2.86783004]
[1770617225194,11.03106443,2088.4,2087.9,10.92654811]
[1770617230000,11.03106443,2088.4,2088.0,10.96431767]
[1770617230899,11.03106443,2088.4,2087.9,10.96431767]
[1770617231395,11.03106443,2088.4,2087.8,2.86783004]
[1770617231600,11.03106443,2088.4,2087.8,13.83214771]
[1770617232798,11.03106443,2088.4,2087.9,10.96431767]
[1770617233298,11.03106443,2088.7,2087.9,10.96431767]
[1770617234205,11.03106443,2088.7,2088.0,10.96431767]
[1770617234603,11.03106443,2088.7,2088.1,10.96431767]
[1770617234802,3.788,2088.8,2088.2,10.96431767]
[1770617234803,14.81906443,2088.8,2088.2,10.96431767]
[1770617235097,0.00519044,2089.0,2088.2,10.96431767]
[1770617235402,11.05222209,2088.9,2088.2,10.96431767]
[1770617235800,0.00519044,2089.0,2088.2,10.96431767]
[1770617235998,0.00519044,2089.0,2088.3,10.88230488]
[1770617236202,0.00519044,2089.0,2088.4,10.88230488]
[1770617236401,0.00519044,2089.0,2088.5,10.88230488]
[1770617236802,11.05741253,2089.0,2088.4,2.86783004]
[1770617237007,11.05741253,2089.0,2088.1,10.88597272]
[1770617239606,11.05741253,2089.0,2088.2,10.74566048]
[1770617241501,11.05741253,2089.0,2088.3,10.74566048]
[1770617241502,11.75088078,2089.0,2088.3,10.74566048]
[1770617244811,0.00519044,2089.0,2088.3,10.74566048]
[1770617245009,0.00519044,2089.0,2088.3,13.61349052]
[1770617245204,0.00519044,2089.0,2088.5,10.74566048]
[1770617245807,0.00519044,2089.0,2088.6,10.74566048]
[1770617246204,11.74569034,2089.3,2088.6,10.74566048]
[1770617246615,11.74569034,2089.3,2088.7,10.74566048]
[1770617247304,11.75035771,2089.3,2088.7,10.74566048]
[1770617249610,0.00466737,2089.3,2088.7,10.74566048]
[1770617249810,11.75035771,2089.3,2088.8,10.74566048]
[1770617250312,0.00466737,2089.3,2088.8,10.74566048]
[1770617250706,0.00466737,2089.3,2088.9,10.74566048]
[1770617251501,11.74569034,2089.5,2088.5,2.86783004]
[1770617251711,11.74569034,2089.5,2088.4,10.74566048]
[1770617252513,11.75021121,2089.5,2088.4,10.74566048]
[1770617254314,11.98969121,2089.5,2088.2,13.61349052]
[1770617254514,11.98969121,2089.5,2088.2,10.74566048]
[1770617256119,11.74569034,2089.4,2088.2,13.61349052]
[1770617256806,11.74569034,2089.4,2088.2,10.74566048]
[1770617258219,14.6016544,2089.4,2088.2,10.74566048]
[1770617258516,11.74569034,2089.2,2088.2,10.74566048]
[1770617260417,11.74569034,2089.2,2088.4,10.74566048]
[1770617260721,11.74569034,2089.4,2088.6,10.74566048]
[1770617260913,11.74569034,2089.4,2088.7,10.74566048]
[1770617264225,11.74569034,2089.4,2088.6,13.61349052]
[1770617265517,11.74569034,2089.4,2088.7,11.28181141]
[1770617267327,11.74569034,2089.4,2088.5,14.13587321]
[1770617267627,11.74569034,2089.4,2088.5,11.26804317]
[1770617267824,11.74569034,2089.4,2088.6,10.87311063]
[1770617268019,11.74569034,2089.4,2088.5,10.87311063]
[1770617268320,11.74569034,2089.4,2088.4,2.86783004]
[1770617268518,11.74569034,2089.4,2088.3,13.74094067]
[1770617268716,14.6016544,2089.4,2088.4,10.87311063]
[1770617269725,14.6016544,2089.4,2088.5,10.87311063]
[1770617273930,14.61207157,2089.4,2088.5,10.87311063]
[1770617276447,11.74569034,2089.4,2088.5,10.87311063]
[1770617276643,14.61207157,2089.4,2088.5,10.87311063]
[1770617276843,11.74569034,2089.4,2088.5,10.87311063]
[1770617277140,14.61207157,2089.4,2088.5,10.87311063]
[1770617278837,11.74569034,2089.4,2088.5,10.87311063]
[1770617279438,11.74569034,2089.4,2088.6,10.92638456]
[1770617280031,11.74569034,2089.4,2088.6,13.79030573]
[1770617280236,0.00452087,2089.5,2088.8,10.96198466]
[1770617280441,11.03015616,2089.5,2088.8,13.82590583]
[1770617280641,11.03015616,2089.5,2088.9,10.96198466]
[1770617281333,11.03015616,2089.5,2088.8,2.86392117]
[1770617281836,11.03015616,2089.5,2088.7,4.29482062]
[1770617282144,11.03015616,2089.5,2088.6,10.96198466]
[1770617285541,11.03015616,2089.5,2088.2,10.61408707]
[1770617285740,11.02563529,2089.3,2088.2,10.61408707]
[1770617289446,11.02563529,2089.3,2088.6,10.69703287]
[1770617292861,11.02563529,2089.3,2088.6,13.56457082]
[1770617293859,11.02563529,2089.3,2088.7,10.66110791]
[1770617295262,2.87355122,2089.5,2088.7,10.66110791]
[1770617295263,13.91879792,2089.5,2088.7,10.66110791]
[1770617295460,11.0452467,2089.4,2088.7,10.66110791]
[1770617300062,0.00452087,2089.5,2088.9,10.73920571]
[1770617300462,11.02940728,2089.5,2088.9,10.73920571]
[1770617301764,11.02488641,2089.8,2089.1,10.73920571]
[1770617301968,11.02488641,2089.8,2089.2,10.73920571]
[1770617302766,11.02830873,2089.8,2089.2,10.73920571]
[1770617303164,0.00342232,2089.8,2089.2,10.73920571]
[1770617303563,0.00342232,2089.8,2089.3,10.73920571]
[1770617304165,11.02830873,2089.8,2089.3,10.73920571]
[1770617304366,11.02488641,2090.2,2089.3,11.03453203]
[1770617305469,11.02871687,2090.2,2089.4,10.73920571]
[1770617305870,11.02871687,2090.2,2089.5,10.73920571]
[1770617306870,0.00383046,2090.2,2089.5,10.73920571]
[1770617307070,0.00383046,2090.2,2089.5,13.60674366]
[1770617307270,0.00383046,2090.2,2089.6,10.73920571]
[1770617307466,0.00383046,2090.2,2089.6,10.7442983]
[1770617307867,11.02488641,2090.5,2089.6,10.7442983]
[1770617308070,11.02488641,2090.5,2089.6,0.00509259]
[1770617308965,11.03018314,2090.5,2089.6,0.00509259]
[1770617309366,11.03018314,2090.5,2089.2,2.86753795]
[1770617309674,11.02488641,2090.1,2088.8,10.73920571]
[1770617309870,11.02488641,2090.0,2088.8,10.73920571]
[1770617310472,11.02488641,2090.0,2088.8,10.74524353]
[1770617315072,11.02488641,2089.9,2088.8,10.74524353]
[1770617315274,11.02488641,2089.7,2088.8,0.00603782]
[1770617316274,2.75325832,2089.4,2088.3,13.60674366]
[1770617316478,11.02488641,2089.3,2088.3,10.73920571]
[1770617317566,11.02488641,2089.3,2088.3,10.74256835]
[1770617320279,11.02488641,2089.3,2088.3,0.00336264]
[1770617320475,11.26438641,2089.3,2088.3,0.00336264]
[1770617320678,11.02488641,2089.1,2088.0,10.73920571]
[1770617321270,11.02488641,2088.9,2087.7,2.86753795]
[1770617321473,11.02488641,2088.9,2087.8,10.73920571]
[1770617321681,11.02488641,2088.7,2087.8,0.00411874]
[1770617322078,11.02488641,2088.7,2087.8,10.74332445]
[1770617322980,11.02488641,2088.7,2087.9,10.73920571]
[1770617323371,11.02992479,2088.9,2087.9,10.73920571]
[1770617324184,11.02992479,2088.9,2087.8,2.87165669]
[1770617324185,0.00503838,2088.9,2088.2,10.73920571]
[1770617324382,11.02992479,2088.9,2088.2,10.73920571]
[1770617324775,0.00503838,2088.9,2088.2,10.73920571]
[1770617324977,0.00503838,2088.9,2088.2,13.60674366]
[1770617325274,0.00503838,2088.9,2088.3,10.91221917]
[1770617326381,11.09380803,2089.2,2088.3,10.91221917]
[1770617327380,11.09834138,2089.2,2088.3,10.91221917]
[1770617329487,0.00453335,2089.2,2088.3,10.91221917]
[1770617329783,11.09834138,2089.2,2088.3,10.91221917]
[1770617331782,0.00453335,2089.2,2088.3,10.91221917]
[1770617331984,0.00453335,2089.2,2088.4,10.8197727]
[1770617332188,0.00453335,2089.2,2088.5,10.8197727]
[1770617332384,0.00453335,2089.2,2088.6,10.8197727]
[1770617332784,11.09380803,2089.5,2088.6,10.8197727]
[1770617332982,11.09380803,2089.5,2088.7,10.81523935]
[1770617333685,11.09380803,2089.6,2088.7,10.81523935]
[1770617333886,11.09835061,2089.6,2088.7,10.81523935]
[1770617334182,0.00454258,2089.6,2088.7,13.6827773]
[1770617334388,0.00454258,2089.6,2088.8,10.82451405]
[1770617334789,11.09835061,2089.6,2088.9,10.82451405]
[1770617338190,11.09835061,2089.6,2089.0,10.80583335]
[1770617341695,11.09835061,2089.6,2088.8,2.86753795]
[1770617341895,11.09835061,2089.6,2088.7,10.83124832]
[1770617343003,0.00454258,2089.6,2088.8,10.83124832]
[1770617343197,11.09835061,2089.6,2088.9,10.83124832]
[1770617348214,11.09835061,2089.6,2088.8,10.73282145]
[1770617352217,11.09835061,2089.6,2088.9,10.35566626]
[1770617352912,11.09835061,2089.6,2088.8,2.85888177]
[1770617353308,11.09835061,2089.6,2088.8,13.21454803]
[1770617354219,11.09835061,2089.6,2088.9,10.45285277]
[1770617355617,11.09835061,2089.6,2089.0,10.44868027]
[1770617355818,11.09835061,2089.6,2089.1,10.44868027]
[1770617357816,11.09835061,2089.6,2089.0,2.85888177]
[1770617358315,11.09835061,2089.6,2089.0,13.32347654]
[1770617359322,11.09835061,2089.6,2089.1,2.85888177]
[1770617359819,11.09835061,2089.6,2089.1,13.32347654]
[1770617360619,11.09835061,2089.6,2089.1,2.85888177]
[1770617360824,11.09835061,2089.6,2089.1,13.34250346]
[1770617362523,11.09835061,2089.6,2089.2,10.51823358]
[1770617365520,11.09835061,2089.6,2089.2,10.58872932]
[1770617366324,11.09835061,2089.6,2089.1,2.85888177]
[1770617366628,11.09835061,2089.6,2088.9,2.85888177]
[1770617367126,11.09835061,2089.6,2088.8,13.42081745]
[1770617367427,11.09835061,2089.6,2088.9,2.85888177]
[1770617367827,11.09835061,2089.6,2088.8,13.42081745]
[1770617368123,11.09835061,2089.6,2089.0,10.58801218]
[1770617368324,11.53536122,2089.6,2089.0,2.85888177]
[1770617368521,11.53536122,2089.6,2089.0,13.44689395]
[1770617369022,11.53536122,2089.6,2089.0,2.85888177]
[1770617369323,11.53536122,2089.6,2089.0,13.44689395]
[1770617370624,11.53536122,2089.6,2089.0,2.85888177]
[1770617370825,11.53536122,2089.6,2088.8,13.45773029]
[1770617373029,11.53536122,2089.6,2088.9,10.61156902]
[1770617373325,11.53536122,2089.6,2089.0,10.61156902]
[1770617373728,11.53536122,2089.6,2089.1,10.61156902]
[1770617374729,11.53536122,2089.6,2089.2,10.61354457]
[1770617375126,0.00454258,2089.6,2089.2,10.61354457]
[1770617377927,11.53081864,2090.5,2089.6,10.47516182]
[1770617378130,11.53081864,2090.5,2089.9,10.60150027]
[1770617378721,11.53593466,2090.5,2089.9,10.60707992]
[1770617378922,11.53081864,2091.0,2089.9,2.87311307]
[1770617379126,11.53081864,2091.0,2090.4,10.59638425]
[1770617379331,11.53081864,2091.0,2090.5,10.59638425]
[1770617379829,11.53081864,2091.6,2090.5,10.59638425]
[1770617380029,11.53625905,2091.6,2090.5,10.59638425]
[1770617380833,11.53625905,2091.6,2090.7,10.48490553]
[1770617383535,11.53625905,2091.6,2090.5,10.59341816]
[1770617391441,11.53625905,2091.6,2090.1,10.80636709]
[1770617391641,11.53625905,2091.6,2090.4,10.80636709]
[1770617392731,11.53625905,2091.6,2090.0,0.23941]
[1770617392732,2.74694718,2091.3,2090.0,10.82682865]
[1770617392938,10.93403793,2090.8,2089.9,0.00557965]
[1770617394044,10.93403793,2090.8,2089.4,10.83174782]
[1770617394246,10.93403793,2090.6,2089.4,10.83174782]
[1770617394942,10.93403793,2090.6,2089.4,10.83792814]
[1770617396745,10.93403793,2090.6,2089.4,0.00618032]
[1770617396946,10.93403793,2090.6,2089.4,10.65915758]
[1770617397647,10.93403793,2090.4,2089.4,0.00618032]
[1770617398449,10.93403793,2090.4,2089.4,10.63620119]
[1770617402950,10.93403793,2090.3,2089.4,10.63620119]
[1770617406550,10.93403793,2090.3,2089.4,0.00618032]
[1770617406749,10.93403793,2090.1,2088.8,10.63666851]
[1770617406954,11.17346793,2089.9,2088.8,10.63666851]
[1770617407150,10.93403793,2089.8,2088.8,10.63666851]
[1770617407657,10.9392642,2089.8,2088.8,10.64118278]
[1770617409654,10.93403793,2089.4,2088.2,10.63481986]
[1770617409859,10.93403793,2089.4,2088.2,10.91646449]
[1770617410159,11.17352793,2089.4,2088.2,10.63481986]
[1770617410753,11.17352793,2089.4,2088.2,10.63973638]
[1770617412960,10.93403793,2089.2,2088.2,0.00491652]
[1770617413159,10.93403793,2089.0,2088.2,0.00491652]
[1770617413660,10.93403793,2088.8,2087.8,10.65690685]
[1770617414366,10.93403793,2088.8,2087.3,0.23972]
[1770617414367,10.93403793,2088.8,2087.4,10.65187307]
[1770617414665,10.93403793,2088.7,2087.4,10.65686967]
[1770617414860,10.93403793,2088.7,2087.4,10.94472237]
[1770617416256,11.60280849,2088.6,2087.4,10.65686967]
[1770617416451,11.60280849,2088.3,2087.4,0.0049966]
[1770617416653,11.60616429,2088.3,2087.4,0.0049966]
[1770617417261,11.60616429,2088.3,2087.4,10.43924117]
[1770617417562,14.59272147,2088.3,2087.4,0.0049966]
[1770617417756,11.21382102,2088.2,2087.1,10.43424457]
[1770617418761,11.21382102,2088.2,2087.1,10.44035751]
[1770617431581,11.21382102,2088.1,2087.1,10.44035751]
[1770617432081,13.9607682,2087.7,2086.7,10.55807644]
[1770617432885,11.21382102,2087.7,2086.7,10.55807644]
[1770617433084,11.21382102,2087.7,2086.7,10.56416623]
[1770617435590,11.21382102,2088.2,2086.7,10.56416623]
[1770617436084,11.21382102,2088.2,2086.8,10.55365164]
[1770617436785,0.0033558,2088.3,2087.2,10.55365164]
[1770617437090,11.21717682,2088.3,2087.4,10.55365164]
[1770617440295,11.21717682,2088.3,2087.5,11.01643947]
[1770617441493,0.0033558,2088.3,2087.5,16.63092007]
[1770617441695,11.21382102,2088.6,2087.7,11.01643947]
[1770617441890,11.21382102,2088.6,2087.9,11.01643947]
[1770617442692,11.22002405,2088.6,2087.9,11.01643947]
[1770617443592,4.796e-05,2088.6,2087.9,11.01643947]
[1770617444595,4.796e-05,2088.6,2088.1,10.87662166]
[1770617445197,10.84170492,2089.1,2088.2,10.89785136]
[1770617445594,10.84170492,2089.1,2088.3,10.89785136]
[1770617445796,10.84170492,2089.3,2088.3,10.89785136]
[1770617446297,10.84741829,2089.3,2088.3,10.90395229]
[1770617450698,10.84741829,2089.3,2088.3,0.00610093]
[1770617451501,10.84741829,2089.3,2088.3,10.87759244]
[1770617452004,10.84741829,2089.3,2088.3,0.00610093]
[1770617453598,10.84170492,2089.1,2088.3,0.00610093]
[1770617454517,10.84170492,2089.1,2088.3,10.92506556]
[1770617455005,10.84741829,2089.3,2088.3,10.92506556]
[1770617455204,0.00571337,2089.3,2088.4,13.78649805]
[1770617455405,0.00571337,2089.3,2088.5,10.91896463]
[1770617455610,0.00571337,2089.3,2088.6,10.91896463]
[1770617456703,10.84170492,2089.7,2088.6,10.91896463]
[1770617457004,10.84170492,2090.1,2088.8,10.8483095]
[1770617457507,10.84170492,2090.1,2088.9,10.8483095]
[1770617457707,10.84618485,2090.1,2088.9,10.8483095]
[1770617458413,10.84618485,2090.1,2089.0,10.9093617]
[1770617458607,0.00447993,2090.1,2089.0,13.77689512]
[1770617458906,0.00447993,2090.1,2089.1,10.9093617]
[1770617459111,0.00447993,2090.1,2089.2,10.9093617]
[1770617460512,10.84618485,2090.1,2089.2,10.9093617]
[1770617463616,10.84618485,2090.1,2088.9,10.90034279]
[1770617465312,10.84618485,2090.1,2089.0,10.89939773]
[1770617469326,10.84618485,2090.1,2089.1,10.83831474]
[1770617469831,10.84618485,2090.1,2088.9,10.83831474]
[1770617471820,10.84618485,2090.1,2089.1,11.22853809]
[1770617472123,10.84618485,2090.1,2089.2,11.12552275]
[1770617472926,3.788,2090.5,2089.4,11.12104282]
[1770617473225,7.17257589,2091.1,2089.3,1.1017]
[1770617473226,10.84170492,2091.4,2090.0,11.12104282]
[1770617473625,10.84170492,2091.3,2090.1,11.12104282]
[1770617473825,10.84170492,2091.3,2090.3,11.12104282]
[1770617474122,10.84635535,2091.3,2090.3,11.1258966]
[1770617474321,10.84170492,2091.2,2090.3,11.1258966]
[1770617476631,0.00465043,2091.3,2090.3,11.1258966]
[1770617476826,0.00465043,2091.3,2090.5,10.69796022]
[1770617478319,11.08253672,2091.3,2090.5,10.69796022]
[1770617478530,11.07788629,2091.2,2090.5,10.69796022]
[1770617481131,14.86588629,2091.2,2090.5,10.69796022]
[1770617482226,11.07788629,2091.1,2090.5,10.69796022]
[1770617482538,0.00465043,2091.3,2090.5,10.93732022]
[1770617483326,11.07788629,2091.7,2090.6,11.53575214]
[1770617483927,11.07788629,2091.3,2090.6,11.53575214]
[1770617484431,3.788,2091.2,2090.6,11.53575214]
[1770617484824,14.86588629,2091.2,2090.6,11.53575214]
[1770617485725,3.788,2091.2,2090.6,11.53575214]
[1770617486132,11.08269627,2091.3,2090.6,11.53575214]
[1770617486333,14.87069627,2091.3,2090.6,11.53575214]
[1770617486633,0.00480998,2091.3,2090.6,11.53575214]
[1770617486832,11.08269627,2091.3,2090.6,11.53575214]
[1770617487330,3.788,2091.2,2090.6,11.53575214]
[1770617487931,11.07788629,2091.1,2090.6,11.53575214]
[1770617488336,11.07788629,2091.1,2090.4,11.55096819]
[1770617489634,11.08269627,2091.3,2090.4,11.55096819]
[1770617490024,11.08269627,2091.3,2090.4,14.41850161]
[1770617490323,11.07788629,2091.2,2090.4,11.55096819]
[1770617493236,11.07788629,2090.9,2090.4,11.55096819]
[1770617495431,3.788,2091.0,2090.4,11.55096819]
[1770617495639,11.08269627,2091.3,2090.4,11.55096819]
[1770617495831,3.788,2091.2,2090.4,11.55096819]
[1770617496031,14.86588629,2091.2,2090.4,11.55096819]
[1770617496631,11.07788629,2091.1,2090.4,11.55096819]
[1770617497235,3.788,2090.9,2090.4,11.55096819]
[1770617497436,3.788,2090.9,2090.4,14.41850161]
[1770617498136,3.788,2090.9,2090.4,11.55096819]
[1770617498334,3.788,2090.9,2090.4,14.41850161]
[1770617500339,11.07788629,2091.2,2090.6,11.55096819]
[1770617500636,14.86588629,2091.2,2090.6,11.55096819]
[1770617501339,14.86588629,2091.2,2090.6,14.41850161]
[1770617502338,11.07788629,2091.1,2090.8,11.55096819]
[1770617502740,3.788,2090.9,2090.8,11.55096819]
[1770617502941,0.00480998,2091.3,2090.8,14.41850161]
[1770617503142,0.01,2091.2,2090.8,14.41850161]
[1770617503536,0.01,2091.2,2090.7,4.30130014]
[1770617503537,11.08269627,2091.3,2090.9,14.41850161]
[1770617503836,11.08269627,2091.3,2090.9,14.40850161]
[1770617504635,0.00480998,2091.3,2090.9,14.40850161]
[1770617504833,11.08269627,2091.3,2090.9,4.30130014]
[1770617505246,11.08269627,2091.3,2090.9,15.76259547]
[1770617506443,11.08269627,2091.3,2090.9,4.30130014]
[1770617506642,11.08269627,2091.3,2090.9,15.76259547]
[1770617507243,0.00480998,2091.3,2091.0,15.76259547]
[1770617507443,0.00480998,2091.3,2091.1,11.46129533]
[1770617508034,11.21253041,2091.6,2091.2,11.46129533]
[1770617508636,11.21253041,2091.6,2091.1,4.30130014]
[1770617508847,11.21253041,2091.6,2091.2,11.46129533]
[1770617509046,11.21855952,2091.6,2091.2,11.46129533]
[1770617509648,11.21855952,2091.6,2091.1,15.76259547]
[1770617510846,11.21855952,2091.6,2091.2,11.46129533]
[1770617511345,11.21855952,2091.6,2091.1,15.76259547]
[1770617514349,11.21855952,2091.6,2091.1,11.46129533]
[1770617514747,11.21855952,2091.6,2091.0,4.30130014]
[1770617515049,9.9183145,2092.5,2091.5,11.46129533]
[1770617515050,11.21253041,2092.0,2091.5,11.46129533]
[1770617515246,11.21253041,2092.0,2091.6,11.46129533]
[1770617515449,11.21253041,2092.0,2091.4,4.30130014]
[1770617515646,11.21253041,2092.0,2091.5,11.46129533]
[1770617516053,11.2163657,2092.0,2091.3,15.76259547]
[1770617516251,11.2163657,2092.0,2091.1,4.30130014]
[1770617516466,11.2163657,2092.0,2091.1,11.46129533]
[1770617516943,11.2163657,2092.0,2091.2,11.46129533]
[1770617517956,11.2163657,2092.0,2091.0,4.30130014]
[1770617518255,11.2163657,2092.0,2091.0,15.76259547]
[1770617520053,11.2163657,2092.0,2091.1,11.46129533]
[1770617525367,11.2163657,2092.0,2091.1,4.30130014]
[1770617525561,11.2163657,2092.0,2091.0,11.46129533]
[1770617527365,11.2163657,2092.0,2091.0,15.76259547]
[1770617527663,11.2163657,2092.0,2091.0,11.46129533]
[1770617528065,11.2163657,2092.0,2091.1,11.46129533]
[1770617529359,11.21253041,2091.9,2091.1,15.76259547]
[1770617529564,11.21253041,2091.9,2091.2,11.46129533]
[1770617531169,11.21253041,2091.9,2091.1,11.46129533]
[1770617532268,11.21253041,2091.9,2091.0,4.30130014]
[1770617532269,11.21253041,2091.9,2091.0,15.76259547]
[1770617533172,11.21253041,2091.9,2091.1,11.46129533]